Cogmind - Beta 13 @@@ ROGUE MODE // 2024.05.31 @ 20:12:01 Player: Gabe+Kate4EVR Result: Destroyed by Z-Imprinter with Zionite Laser-M Performance ------------- Evolutions (1) 500 Regions Visited (5) 1000 Robots Destroyed (34) 170 Value Destroyed (725) 725 Prototype IDs (2) 40 Alien Tech Used (0) 0 Bonus (600) 600 TOTAL SCORE: 3035 Bonus ------- Met Imprinter 300 Was Imprinted 300 Cogmind --------- Core Integrity 0/400 Matter 267/300 Energy 98/100 System Corruption 0% Temperature Cool (9) Movement Core (50) Location -7/Deep Caves Parts ------- > --- POWER (1) -------- (None) > --- PROPULSION (4) --- (None) > --- UTILITY (2) ------ (None) > --- WEAPON (2) ------- (None) > --- INVENTORY (5) ---- Light Ion Engine Light Armor Plating Beamcaster Grenade Launcher Phasing Sabre Peak State ------------ > --- POWER ------------ Improved Ion Engine > --- PROPULSION ------- Light Treads Aluminum Leg Aluminum Leg Aluminum Leg > --- UTILITY ---------- Large Storage Unit Hacking Suite > --- WEAPON ----------- Heavy Battle Rifle Slug Cannon > --- INVENTORY -------- Ion Engine Light Ion Engine Cooling System Targeting Computer Light Armor Plating High-powered Tractor Beam Beamcaster Assault Rifle Light Cannon Grenade Launcher Mini Grenade Launcher Mining Laser Plasma Cutter Phasing Sabre CR-A16's Pointy Stick [Rating: 21] Favorites ----------- Power Improved Ion Engine Engine Improved Ion Engine Power Core Light Nuclear Core Propulsion Aluminum Leg Treads Light Treads Leg Aluminum Leg Utility Large Storage Unit Device Heat Sink Storage Large Storage Unit Processor Targeting Computer Hackware Hacking Suite Protection Light Armor Plating Weapon Assault Rifle Energy Gun Particle Gun Ballistic Gun Assault Rifle Ballistic Cannon Slug Cannon Special Weapon Plasma Cutter Build | -11 -10 -9 -9 -7 -7 ------- Run | Yrd Mat Mat Min Zio Dee Slots Evolved 2 | . . 2 . . . Power . | . . . . . . Propulsion 2 | . . 2 . . . Utility . | . . . . . . Weapon . | . . . . . . Parts Attached 47 | 6 15 19 2 5 . Power 5 | . 1 4 . . . Engine 4 | . . 4 . . . Core 1 | . 1 . . . . Reactor . | . . . . . . Propulsion 17 | 2 5 10 . . . Treads 1 | . . 1 . . . Leg 16 | 2 5 9 . . . Wheel . | . . . . . . Hover . | . . . . . . Flight . | . . . . . . Utility 10 | 1 4 3 . 2 . Device 1 | . 1 . . . . Storage 4 | 1 2 . . 1 . Processor 1 | . 1 . . . . Hackware 1 | . . . . 1 . Protection 3 | . . 3 . . . Artifact . | . . . . . . Weapon 15 | 3 5 2 2 3 . Energy Gun 2 | . 2 . . . . Energy Cannon . | . . . . . . Ballistic Gun 11 | 3 3 2 2 1 . Ballistic Cannon 1 | . . . . 1 . Launcher . | . . . . . . Special Weapon 1 | . . . . 1 . Impact Weapon . | . . . . . . Slashing Weapon . | . . . . . . Piercing Weapon . | . . . . . . Special Melee Weapon . | . . . . . . Unidentified Prototypes . | . . . . . . Parts Lost 10 | . 2 6 . . 2 Power 1 | . . 1 . . . Propulsion 3 | . . 2 . . 1 Utility 2 | . . 1 . . 1 Weapon 4 | . 2 2 . . . Highest Loss Streak 2 | . 2 2 . . 2 To Critical Strikes . | . . . . . . Average Slot Usage (%) 96 | . 91 97 100 100 93 Engine 6 | . . 5 11 11 10 Core 3 | . 8 5 . . . Treads 6 | . . 2 11 11 10 Leg 33 | . 28 41 33 33 30 Storage 11 | . 14 11 11 11 10 Processor 4 | . 10 5 . . . Protection 5 | . . 4 11 9 . Ballistic Gun 19 | . 25 20 22 15 10 Special Weapon 2 | . . . . 5 . Naked Turns 9 | . . . . . 9 Heaviest Build 38 | 9 28 33 35 38 38 Greatest Support 43 | 20 20 43 30 30 30 Greatest Overweight (x) 1 | . 1 1 1 1 1 Average Overweight (x) . | . . . 1 1 . Largest Inventory Capacity 15 | 8 15 15 15 15 15 Average Capacity 13 | 6 9 15 15 15 14 Most Carried 15 | 3 11 15 15 15 15 Average Carried 12 | 2 8 14 14 14 14 Final Capacity 15 | 8 15 15 15 15 5 Final Carried 15 | 3 11 15 15 15 5 Class Distribution -------------------- 70% | Scavenger-Mutant 29% | Mutant Dominant Class ---------------- Mutant | -10/Materials Scavenger-Mutant | -9/Materials Scavenger-Mutant | -9/Mines Scavenger-Mutant | -7/Zion Scavenger-Mutant | -7/Deep Caves Resources | -11 -10 -9 -9 -7 -7 ----------- Run | Yrd Mat Mat Min Zio Dee Matter Collected 1173 | 180 454 461 31 47 . Remotely . | . . . . . . Salvage Created 1473 | . 540 933 . . . Parts 80 | . 21 59 . . . Haulers Intercepted 2 | . . 2 . . . Recyclers Shooed 5 | . 1 4 . . . Parts Field Recycled . | . . . . . . Retrieved Matter . | . . . . . . Parts Self-Destructed 3 | . . . . 3 . Prevented . | . . . . . . Kills | -11 -10 -9 -9 -7 -7 ------- Run | Yrd Mat Mat Min Zio Dee Combat Hostiles Destroyed 24 | . 8 16 . . . Guns 24 | . 8 16 . . . Classes Destroyed 6 | . 3 3 . . . Worker 2 | . 1 1 . . . Hauler 2 | . . 2 . . . Recycler 6 | . 2 4 . . . Swarmer 8 | . . 8 . . . Grunt 13 | . 8 5 . . . Sentry 3 | . . 3 . . . Best Kill Streak 7 | . 3 7 . . . Combat Bots Only 5 | . 2 5 . . . Max Kills in Single Turn 1 | . 1 1 . . . Gunslinging . | . . . . . . Exploded . | . . . . . . Melee . | . . . . . . Uniques/NPCs Destroyed . | . . . . . . Combat | -11 -10 -9 -9 -7 -7 -------- Run | Yrd Mat Mat Min Zio Dee Hostile Shots Fired 220 | . 55 136 . . 29 Missed 50 | . 11 29 . . 10 Damage Taken 2271 | . 563 1093 . . 615 Core 488 | . 86 179 . . 223 Absorbed by Shields . | . . . . . . Core Remaining (%) 82 | 100 65 . . . . Volleys Fired 150 | . 56 94 . . . Largest 2 | . 2 2 . . . Hottest 85 | . 85 40 . . . Shots Fired 275 | . 105 170 . . . Gun 275 | . 105 170 . . . Cannon . | . . . . . . Launcher . | . . . . . . Special . | . . . . . . Kinetic 268 | . 98 170 . . . Thermal 1 | . 1 . . . . Explosive . | . . . . . . Electromagnetic 6 | . 6 . . . . Robot Hit Streak 11 | . 11 10 . . . Robot Miss Streak 4 | . 4 3 . . . Penetration Max . | . . . . . . Secondary Targets 3 | . . 3 . . . Max Gunslinging Chain 1 | . . 1 . . . Shots Hit Robots 184 | . 75 109 . . . Core Hits 66 | . 22 44 . . . Critical Kills . | . . . . . . Critical Parts Destroyed . | . . . . . . Critical Strikes . | . . . . . . Melee Attacks . | . . . . . . Impact . | . . . . . . Slashing . | . . . . . . Piercing . | . . . . . . Sneak Attacks . | . . . . . . Combat Hostiles . | . . . . . . Follow-up Attacks . | . . . . . . Damage Inflicted 2052 | . 871 1181 . . . Guns 2052 | . 871 1181 . . . Cannons . | . . . . . . Explosions . | . . . . . . Melee . | . . . . . . Ramming . | . . . . . . Kinetic 1984 | . 803 1181 . . . Thermal . | . . . . . . Explosive . | . . . . . . Electromagnetic 68 | . 68 . . . . Impact . | . . . . . . Slashing . | . . . . . . Piercing . | . . . . . . Highest Corruption . | . . . . . . Average Corruption . | . . . . . . Corruption Purged . | . . . . . . Corruption Blocked . | . . . . . . Overload Shots . | . . . . . . Overflow Damage . | . . . . . . Projectiles . | . . . . . . Explosions . | . . . . . . Melee . | . . . . . . Knockbacks . | . . . . . . Impact . | . . . . . . Kinetic . | . . . . . . Secondary . | . . . . . . Self-Inflicted Damage . | . . . . . . Shots . | . . . . . . Rammed . | . . . . . . Targets Rammed . | . . . . . . Kicked . | . . . . . . Crushed . | . . . . . . Highest Temperature 45 | . 45 24 . . 8 Average Temperature 8 | . 10 6 . . 6 Received Heat Transfer 801 | . 339 291 . . 171 Siege Activations . | . . . . . . Robots Corrupted . | . . . . . . Combat Hostiles . | . . . . . . Parts Fried . | . . . . . . Impact Corruptions . | . . . . . . Robots Melted . | . . . . . . Combat Hostiles . | . . . . . . Parts Melted . | . . . . . . Heat Transferred . | . . . . . . Parts Sabotaged . | . . . . . . Parts Stolen . | . . . . . . Parts Stripped . | . . . . . . Power Chain Reactions . | . . . . . . Alert | -11 -10 -9 -9 -7 -7 ------- Run | Yrd Mat Mat Min Zio Dee Peak Influence 277 | . 162 277 85 . . Initial 85 | . . . 85 . . Average 94 | . 58 143 85 . . Maximum Alert Level 1 | . . 1 . . . Low Security (%) 88 | 100 100 72 100 . . Level 1 11 | . . 27 . . . Level 2 . | . . . . . . Level 3 . | . . . . . . Level 4 . | . . . . . . Level 5 . | . . . . . . High Security . | . . . . . . Max Security . | . . . . . . Squads Dispatched 3 | . 1 2 . . . Investigation . | . . . . . . Extermination . | . . . . . . Reinforcement 3 | . 1 2 . . . Assault . | . . . . . . Garrison . | . . . . . . Intercept . | . . . . . . Searches Triggered . | . . . . . . Construction Impeded . | . . . . . . Haulers Reinforced . | . . . . . . Active Scanning Responses . | . . . . . . Cargo Convoy Interrupts . | . . . . . . Stealth | -11 -10 -9 -9 -7 -7 --------- Run | Yrd Mat Mat Min Zio Dee Distress Signals 7 | . 2 5 . . . Communications Jammed . | . . . . . . Distress Signals . | . . . . . . Times Spotted 45 | . 13 27 . . 5 Peak Tracking Total 8 | . 3 7 . . 8 Tactical Retreats 1 | . 1 . . . . Traps | -11 -10 -9 -9 -7 -7 ------- Run | Yrd Mat Mat Min Zio Dee Traps Triggered . | . . . . . . Indirectly . | . . . . . . Trap Hack Attempts . | . . . . . . Triggered . | . . . . . . Disarmed . | . . . . . . Reprogrammed . | . . . . . . Reused . | . . . . . . Traps Extracted . | . . . . . . Installed . | . . . . . . Triggered . | . . . . . . Machines | -11 -10 -9 -9 -7 -7 ---------- Run | Yrd Mat Mat Min Zio Dee Machines Disabled . | . . . . . . Max in Single Turn . | . . . . . . Machines Repaired . | . . . . . . Machines Dismantled 3 | . . . . 3 . Machines Sabotaged . | . . . . . . Overloaded Fab Kills . | . . . . . . Hacking | -11 -10 -9 -9 -7 -7 --------- Run | Yrd Mat Mat Min Zio Dee Machines Accessed 7 | . 4 3 . . . Terminals 5 | . 3 2 . . . Fabricators . | . . . . . . Repair Stations 1 | . 1 . . . . Recycling Units . | . . . . . . Scanalyzers 1 | . . 1 . . . Garrison Access . | . . . . . . Total Hacks 11 | . 6 5 . . . Successful 6 | . 2 4 . . . Failed 5 | . 4 1 . . . Catastrophic 1 | . 1 . . . . Database Lockouts . | . . . . . . Manual 4 | . 3 1 . . . Terminals 6 | . 4 2 . . . Fabricators . | . . . . . . Repair Stations 2 | . 2 . . . . Recycling Units . | . . . . . . Scanalyzers 3 | . . 3 . . . Garrison Access . | . . . . . . Terminal Hacks 3 | . 2 1 . . . Prototype ID Bank 2 | . 2 . . . . Alert Level 1 | . . 1 . . . Fabricator Hacks . | . . . . . . Repair Station Hacks . | . . . . . . Recycling Unit Hacks . | . . . . . . Scanalyzer 3 | . . 3 . . . Insert Component 2 | . . 2 . . . Analyze 1 | . . 1 . . . Garrison Access Hacks . | . . . . . . Unauthorized Hacks . | . . . . . . Terminals . | . . . . . . Fabricators . | . . . . . . Repair Stations . | . . . . . . Recycling Units . | . . . . . . Scanalyzers . | . . . . . . Garrison Access . | . . . . . . Data Cores Recovered . | . . . . . . Used . | . . . . . . Hacking Detections 4 | . 2 2 . . . Full Trace Events . | . . . . . . Feedback Events . | . . . . . . Feedback Blocked . | . . . . . . Robot Schematics Acquired . | . . . . . . Robots Built . | . . . . . . Authchips . | . . . . . . Time . | . . . . . . Total Robot Build Rating . | . . . . . . Part Schematics Acquired 1 | . . 1 . . . Parts Built . | . . . . . . Authchips . | . . . . . . Time . | . . . . . . Total Part Build Rating . | . . . . . . Parts Repaired . | . . . . . . Time . | . . . . . . Parts Recycled . | . . . . . . Recycled Matter . | . . . . . . Retrieved Matter . | . . . . . . Retrieved Components . | . . . . . . Parts Scanalyzed 1 | . . 1 . . . Part Schematics Acquired 1 | . . 1 . . . Parts Damaged 1 | . . 1 . . . Bothacking | -11 -10 -9 -9 -7 -7 ------------ Run | Yrd Mat Mat Min Zio Dee Used RIF Installer . | . . . . . . Robots Hacked . | . . . . . . Non-combat . | . . . . . . Combat . | . . . . . . Robot Hacks Applied . | . . . . . . Relay Couplers Released . | . . . . . . Fabnet Peak Effective % . | . . . . . . Robots Rewired . | . . . . . . Allies Hacked . | . . . . . . Hacks Repelled . | . . . . . . Allies | -11 -10 -9 -9 -7 -7 -------- Run | Yrd Mat Mat Min Zio Dee Total Allies 5 | . . . 1 4 . Largest Group 4 | . . . 1 4 3 Highest-Rated Group 151 | . . . 31 151 114 Highest-Rated Ally 40 | . . . 31 40 40 Total Orders . | . . . . . . Ally Attacks . | . . . . . . Total Damage . | . . . . . . Kills . | . . . . . . Allies Corrupted . | . . . . . . Allies Melted . | . . . . . . Intel | -11 -10 -9 -9 -7 -7 ------- Run | Yrd Mat Mat Min Zio Dee Robot Analysis Total . | . . . . . . Derelict Logs Recovered 3 | . . . 1 2 . Drone Launches . | . . . . . . Drone Recoveries . | . . . . . . Exploration | -11 -10 -9 -9 -7 -7 ------------- Run | Yrd Mat Mat Min Zio Dee Turns Passed 3237 | 75 800 761 231 1220 150 Spaces Moved 1623 | 49 421 350 118 593 92 Core 25 | 5 . . . . 20 Treads . | . . . . . . Legs 1598 | 44 421 350 118 593 72 Wheels . | . . . . . . Hover . | . . . . . . Flight . | . . . . . . Fastest Speed 50 | 50 120 120 190 190 50 Average Speed 156 | 112 126 131 190 190 159 Slowest Speed 190 | 120 190 190 190 190 190 Overloaded Moves . | . . . . . . Propulsion Burnouts . | . . . . . . Robots Hopped . | . . . . . . Cave-ins Triggered . | . . . . . . Exploration Rate (%) 35 | 3 48 34 34 61 33 Regions Visited 5 Branch Regions 3 Pre-discovered Areas 3 | . . . 1 2 . Known Exits Taken . | . . . . . . Unknown Exits Taken 5 | 1 1 1 1 1 . Scrap Searched 3 | . . . 1 2 . Spaces Dug . | . . . . . . Terrain Destroyed . | . . . . . . Melee . | . . . . . . Projectile . | . . . . . . AOE . | . . . . . . Terrain Rammed . | . . . . . . Walls Destroyed . | . . . . . . Machines Disabled . | . . . . . . Actions | -11 -10 -9 -9 -7 -7 --------- Run | Yrd Mat Mat Min Zio Dee Total 2035 | 65 596 510 127 638 99 Wait 96 | 9 75 12 . . . Move 1618 | 48 420 349 117 592 92 Hop . | . . . . . . Pick Up 40 | 2 14 16 3 5 . Fast Attach 19 | 5 5 6 1 2 . Attach 6 | . 2 4 . . . Detach 3 | . 1 2 . . . Swap 22 | 1 8 9 1 3 . Drop 54 | . 15 18 5 9 7 Fire 150 | . 56 94 . . . Melee . | . . . . . . Ram . | . . . . . . Kick . | . . . . . . Crush . | . . . . . . Escape Stasis . | . . . . . . Rewire . | . . . . . . Trap . | . . . . . . Miscellaneous 27 | . . . . 27 . Route ------- -11/Scrapyard -10/Materials (discovered 2 exits: *Mat / [*Min]) -9/Materials (discovered 2 exits: [*Min x2]) -9/Mines (discovered 2 exits: [*Mat] / [*Zio]) -7/Zion -7/Deep Caves History --------- Turn | Location | Event 3 | -11/Scrapyard | Discovered new exit (range 15) 76 | -11/Scrapyard | Entered Materials 322 | -10/Materials | Build established: Mutant 525 | -10/Materials | Discovered new exit (range 16) 657 | -10/Materials | Discovered new exit (range 10) 676 | -10/Materials | Derelicts attacked the area 876 | -10/Materials | Entered another Materials area 876 | -9/Materials | Evolved 2 slots: Propulsion x2 1160 | -9/Materials | Discovered new exit (range 13) 1364 | -9/Materials | Discovered new exit (range 14) 1559 | -9/Materials | Build established: Scavenger-Mutant 1637 | -9/Materials | Entered Mines 1640 | -9/Mines | Received a Mining Laser from a helpful Derelict 1681 | -9/Mines | Met a Derelict bent on vengeance 1839 | -9/Mines | Discovered new exit (range 15) 1842 | -9/Mines | A Derelict revealed a hidden shortcut to a safe place 1856 | -9/Mines | Learned location of Zion (-7) 1868 | -9/Mines | Entered Zion 1868 | -7/Zion | Accompanied by 1 ally 2013 | -7/Zion | Learned Factory stockpile data 2088 | -7/Zion | Found CR-A16's Pointy Stick 2125 | -7/Zion | Learned location of Data Miner (-6) 2144 | -7/Zion | Learned location of Warlord (-4) 2435 | -7/Zion | Discovered new exit (range 3) 2435 | -7/Zion | Saw the warning signs outside the Deep Caves entrance 2560 | -7/Zion | Learned Factory trap positions 2731 | -7/Zion | Imprinted 2733 | -7/Zion | Declared Zion's savior 3088 | -7/Zion | Entered Deep Caves 3088 | -7/Deep Caves | Accompanied by 4 allies 3210 | -7/Deep Caves | Attacked by Z-Imprinter 3225 | -7/Deep Caves | Core integrity fell below 50% 3235 | -7/Deep Caves | Z-Facility disabled 3237 | -7/Deep Caves | Core integrity fell below 20% 3238 | -7/Deep Caves | Destroyed by Z-Imprinter with Zionite Laser-M Last Messages --------------- LOCATION=UNKNOWN GOAL=ESCAPE 03090_ WA-HR1(M): "Okay, we didn't really expect you'd be crazy enough to head out this way. We'll go back and get... reinforcements... yeah." 03090_ WA-HR1(M) slips into the shadows. 03091_ SX-X15(M) slips into the shadows. 03091_ K0-FFT(M) slips into the shadows. 03092_ W5-ZGT(M) slips into the shadows. 03200_ NEW_ZION: Z-Facility proximity alert. Z-Imprinter: GET AWAY FROM HERE! I've worked too hard for our future just to have you ruin everything! 03221_ Aluminum Leg destroyed. 03225_ Dropped Aluminum Leg. 03226_ Dropped Lgt. Treads. 03227_ Dropped Lrg. Storage Unit. 03227_ Dropped Imp. Ion Engine. 03228_ Dropped Slug Cannon. 03228_ Dropped Hvy. Battle Rifle. 03229_ Hacking Suite destroyed. 03235_ Z-Facility disabled. Map ----- +----------------------------------------------------+ | ?????????????????????????????????????????????????? | | ?????????????????????????????????????????????????? | | ?????????????????????????????????????????????????? | | ?????????????????????????????????????????????????? | | ?????????????????????????????????????????????????? | | ?????????????????????????????????????????????????? | | ?????????????????????????????????????????????????? | | ?????????????????????????????????????????????????? | | ?????????????????????????????????????????????????? | | ?????????????????????????????????????????????????? | | ??????????????????????? ????????????????????? | | ????????????????????? ??????????????????? | | ?????????????????? ??????????????? | | ???????????????? "????????????? | | ?????????????? "???????????? | | ?????????????? ""??????????? | | ????????????? ""??????????? | | ????????????? ""?????????? | | ????????????? """?????????" | | ?????????????# """"????????"" | | ?????????????# """???????""" | | ?????????????# ""?? "??"""" | | ??????????? # """" """"" | | ?????????? """" """ | | ?????????? """" | | ?????????? @ """"""""""" | | ?????????? " """"""" | | ?????????? I | | ??????????? | | ??????????? | | ???????????? !* | | ???????????? []!|] | | ???????????? ]===! | | ????????????? /!| | | ????????????? ###zzz### [* # | | ?????????????? ##??# #?## ## | | ?????????????? ????#####??### #####? | | ????????????????####??????????????###########????? | | ?????????????????????????????????????????????????? | | | | | | | | | | | | | | | | | | | | | | | +----------------------------------------------------+ Best States ------------- Heat Dissipation 35 Energy Generation 14 Energy Capacity 265 Matter Stores 300 Matter Capacity 300 Sight Range 16 Terrain Scan Density 10 Armor Coverage 150 Evasion (%) 55 Targeting Accuracy 5 Offensive Hacking 10 Item Schematics ----------------- Aluminum Leg | -9/Materials | Scanalyzed Robot Schematics ------------------ None Fabricated ------------ Nothing Alien Tech Used ----------------- None Achievements -------------- None Challenges ------------ None Game ------ Seed StormCorruptionChip Manual? 0 Play Time 00:16:14 Cumulative 168.9 hours Start 2024.05.31 @ 19:56:23 End 2024.05.31 @ 20:12:01 Sessions 1 Manual Loads 0 Difficulty Rogue Special Mode None Game No. 337 Rogue 337 Adventurer 0 Explorer 0 Win Type - Total 0 Types 0/0/0/0/0/0/0/0/0 Lore% 47 Gallery% 63 Achievement% 45 Wizard Run 0 Options --------- Layout 0 ASCII 0 Keyboard 1 Movement Numpad Keybinds 0 Fullscreen 2 Font 18/X11 Map View 76x50 Zoom Use 0% Tactical HUD 1 Map Filters NONE Filters NONE Steam 1 RUN: 6d0f2881-642e-47d4-b588-11f5af8ab294